bitfinex/quotes_ETHUSD_20240630
["timestamp","ask_amount","ask_price","bid_price","bid_amount"]
[1719790410035,2.3529,3449.7,3449.3,0.824]
[1719790410240,2.2825,3450.0,3449.5,0.824]
[1719790412458,2.2825,3450.0,3449.3,0.824]
[1719790413069,2.2825,3450.0,3449.5,0.824]
[1719790414959,2.2825,3450.0,3449.7,0.824]
[1719790416032,2.2825,3450.0,3449.5,0.824]
[1719790417568,2.2825,3450.0,3449.3,0.824]
[1719790418251,0.55,3449.9,3449.2,17.0610435]
[1719790418453,0.55,3449.9,3449.2,17.8850435]
[1719790419288,2.2825,3450.0,3449.4,0.824]
[1719790420554,2.2825,3450.0,3449.2,17.8850435]
[1719790422545,2.2825,3450.0,3449.4,0.824]
[1719790430254,2.2825,3450.0,3449.2,17.8850435]
[1719790443992,2.2825,3450.0,3449.5,0.824]
[1719790444198,2.2825,3450.0,3449.3,0.824]
[1719790447901,2.2825,3450.0,3449.2,17.0610435]
[1719790450107,2.2825,3450.0,3449.3,0.824]
[1719790451067,2.3783,3449.4,3449.2,17.0610435]
[1719790451581,2.9283,3449.3,3449.2,17.0610435]
[1719790454574,2.3783,3449.3,3449.2,17.0610435]
[1719790455599,2.9283,3449.3,3449.2,17.0610435]
[1719790455881,3.60353,3449.3,3449.2,17.0610435]
[1719790457696,2.9283,3449.3,3449.2,17.0610435]
[1719790458980,3.7523,3449.3,3449.2,17.0610435]
[1719790460171,2.9283,3449.3,3449.2,17.0610435]
[1719790463789,3.7523,3449.3,3449.2,17.0610435]
[1719790466774,9.63445622,3449.7,3449.2,17.0610435]
[1719790468480,2.3223,3449.7,3449.2,17.0610435]
[1719790471092,2.3223,3450.0,3449.2,17.0610435]
[1719790471417,0.55,3449.9,3449.3,0.824]
[1719790471642,5.3223,3450.0,3449.3,0.824]
[1719790474142,5.3223,3450.0,3449.2,19.3329435]
[1719790475415,6.1463,3450.0,3449.2,19.3329435]
[1719790475935,0.824,3449.8,3449.2,17.0610435]
[1719790480343,0.55,3449.9,3449.2,17.0610435]
[1719790484150,2.4423,3449.8,3449.2,17.0610435]
[1719790484337,3.2663,3449.8,3449.2,17.0610435]
[1719790485207,0.55,3449.7,3449.2,17.0610435]
[1719790490744,0.824,3449.3,3449.2,17.0610435]
[1719790491134,0.824,3449.5,3449.2,17.0610435]
[1719790495465,0.55,3449.4,3449.2,17.0610435]
[1719790496574,0.55,3449.6,3449.2,17.0610435]
[1719790501278,0.93163,3449.6,3449.2,17.0610435]
[1719790501488,0.824,3449.5,3449.2,17.0610435]
[1719790501699,0.55,3449.4,3449.2,17.0610435]
[1719790507888,2.821,3449.4,3449.2,17.0610435]
[1719790508386,0.824,3449.3,3449.2,17.0610435]
[1719790508576,1.374,3449.3,3449.2,17.0610435]
[1719790522000,0.55,3449.3,3449.2,17.0610435]
[1719790522176,1.374,3449.3,3449.2,17.0610435]
[1719790522693,0.55,3449.3,3449.2,17.0610435]
[1719790522902,0.55,3449.4,3449.2,17.0610435]
[1719790527178,0.55,3449.5,3449.2,17.0610435]
[1719790528273,1.374,3449.5,3449.2,17.0610435]
[1719790531595,0.55,3449.5,3449.2,17.0610435]
[1719790531914,0.55,3449.5,3449.3,0.07763349]
[1719790532511,0.55,3449.5,3449.4,0.07760426]
[1719790532878,0.55,3449.5,3449.2,17.0610435]
[1719790533105,0.55,3449.5,3449.3,0.07766778]
[1719790533330,0.55,3449.5,3449.2,17.0610435]
[1719790533613,0.55,3449.5,3449.4,0.07666092]
[1719790533787,0.55,3449.5,3449.2,17.0610435]
[1719790533994,0.55,3449.5,3449.3,0.07672445]
[1719790534518,0.55,3449.5,3449.4,0.07666092]
[1719790535022,0.76070204,3449.5,3449.4,0.07666092]
[1719790535322,0.76070204,3449.5,3449.2,17.0610435]
[1719790535533,0.55,3449.5,3449.4,0.07665692]
[1719790535835,0.76070378,3449.5,3449.4,0.07665749]
[1719790536017,0.76070378,3449.5,3449.2,17.0610435]
[1719790536190,0.55,3449.5,3449.3,0.07672102]
[1719790536527,0.55,3449.5,3449.2,17.0610435]
[1719790536725,0.55,3449.5,3449.4,0.07665749]
[1719790536924,0.7607275,3449.5,3449.3,0.07672102]
[1719790537082,0.55,3449.5,3449.4,0.07665749]
[1719790537285,0.55,3449.5,3449.2,17.0610435]
[1719790537286,0.76073266,3449.5,3449.2,17.0610435]
[1719790537493,3.44203266,3449.4,3449.3,0.07672216]
[1719790537707,3.99203266,3449.4,3449.2,17.0610435]
[1719790538028,0.21073266,3449.3,3449.2,17.0610435]
[1719790538321,0.76073266,3449.3,3449.2,17.0610435]
[1719790540290,0.76075137,3449.3,3449.2,17.0610435]
[1719790540624,0.55,3449.3,3449.2,17.0610435]
[1719790540788,1.51556472,3449.3,3449.2,17.0610435]
[1719790541727,4.51556472,3449.3,3449.2,17.0610435]
[1719790542313,6.83636472,3449.3,3449.2,17.0610435]
[1719790543305,6.83638225,3449.3,3449.2,17.0610435]
[1719790543643,6.83639174,3449.3,3449.2,17.0610435]
[1719790546408,6.8364197,3449.3,3449.2,17.0610435]
[1719790548402,7.6604197,3449.3,3449.2,17.0610435]
[1719790549415,3.21080545,3449.3,3449.2,17.0610435]
[1719790549665,7.31215622,3449.7,3449.2,19.5012435]
[1719790549833,3.21086914,3449.6,3449.2,19.57369293]
[1719790550013,3.0,3449.6,3449.2,19.57369293]
[1719790550329,3.824,3449.6,3449.2,19.57369293]
[1719790551231,0.55,3449.5,3449.2,19.57369293]
[1719790561361,7.31215622,3449.7,3449.3,3.273]
[1719790561562,7.31215622,3450.2,3449.6,2.449]
[1719790561873,7.31215622,3450.2,3449.3,0.02053472]
[1719790561874,7.31215622,3450.6,3450.1,2.449]
[1719790562026,7.31215622,3450.6,3450.5,0.824]
[1719790562225,19.78215622,3451.2,3450.5,0.824]
[1719790563134,19.78215622,3451.2,3450.3,0.824]
[1719790563441,20.60615622,3451.2,3450.1,2.449]
[1719790563646,20.60615622,3451.2,3450.1,3.273]
[1719790564244,0.824,3451.0,3450.1,3.273]
[1719790564776,0.55,3450.9,3450.1,3.273]
[1719790565839,0.55,3450.9,3450.3,0.824]
[1719790566044,0.55,3451.1,3450.3,0.824]
[1719790566975,0.55,3451.1,3450.5,0.824]
[1719790567354,0.55,3451.1,3450.6,0.07137514]
[1719790568891,0.55,3451.1,3450.7,0.0713048]
[1719790569081,0.55,3451.1,3450.3,0.88193735]
[1719790569288,0.55,3451.1,3450.8,0.07124132]
[1719790569532,0.55,3451.1,3450.3,0.88193735]
[1719790569713,0.55,3451.1,3450.9,0.07117785]
[1719790569872,0.55,3451.1,3450.3,0.88193735]
[1719790570204,0.55,3451.1,3451.0,0.07111438]
[1719790570530,0.55,3451.1,3450.3,0.88193735]
[1719790570815,0.55,3451.1,3451.0,0.07111438]
[1719790571015,0.55,3451.1,3450.3,0.88193735]
[1719790571396,0.55,3451.1,3450.4,0.07149526]
[1719790573222,0.55,3451.1,3450.5,0.824]
[1719790573540,0.55,3451.1,3450.6,0.07136828]
[1719790578719,3.55,3451.4,3450.6,0.07136828]
[1719790578915,8.13615622,3451.5,3450.6,0.07136828]
[1719790578916,7.31215622,3451.5,3450.9,0.824]
[1719790580955,7.31215622,3451.5,3450.7,2.2792]
[1719790581162,0.55,3451.4,3450.7,2.2792]
[1719790583609,2.9102,3451.4,3450.6,0.824]
[1719790583743,2.9102,3451.4,3450.5,0.824]
[1719790583945,2.9102,3451.4,3450.7,0.06928706]
[1719790584151,4.01483562,3451.4,3450.5,0.824]
[1719790584323,4.01483562,3451.4,3450.8,0.06922358]
[1719790584649,4.01483562,3451.4,3450.5,0.824]
[1719790584950,4.01483562,3451.4,3450.6,0.06935225]
[1719790585151,4.01483562,3451.4,3450.5,0.824]
[1719790585346,4.01483562,3451.4,3450.7,0.06928877]
[1719790585552,4.01483562,3451.4,3450.5,0.824]
[1719790585553,1.21509918,3451.3,3450.5,0.824]
[1719790585748,0.55,3451.2,3450.8,0.06922529]
[1719790586057,0.55,3451.2,3450.9,0.06916125]
[1719790586349,0.55,3451.2,3450.3,0.824]
[1719790586555,0.55,3451.2,3451.0,0.06909778]
[1719790586720,0.55,3451.3,3450.3,0.824]
[1719790586921,0.55,3451.3,3451.1,0.06903431]
[1719790587155,0.55,3451.3,3450.3,0.824]
[1719790587389,0.55,3451.3,3451.2,0.06897085]
[1719790587555,1.65463562,3451.3,3450.5,0.824]
[1719790587719,0.55,3451.3,3451.2,0.06897085]
[1719790587915,0.55,3451.3,3450.5,0.824]
[1719790588154,0.55,3451.3,3451.2,0.06897085]
[1719790588454,0.55,3451.3,3450.5,0.824]
[1719790588654,0.55,3451.3,3450.6,0.06935168]
[1719790588857,0.55,3451.3,3450.5,0.824]
[1719790589016,0.55,3451.3,3450.6,0.06935168]
[1719790589217,0.55,3451.3,3450.5,0.824]
[1719790589443,0.55,3451.3,3450.6,0.06935168]
[1719790589639,0.55,3451.3,3450.5,0.824]
[1719790589951,0.55,3451.3,3450.6,0.06935168]
[1719790590140,0.55,3451.3,3450.5,0.824]
[1719790590454,0.55,3451.3,3450.6,0.06935168]
[1719790590753,0.55,3451.3,3450.5,0.824]
[1719790591054,0.55,3451.3,3450.6,0.06935111]
[1719790591456,0.55,3451.3,3450.5,0.824]
[1719790591623,0.55,3451.3,3450.6,0.06935111]
[1719790591825,0.55,3451.3,3450.5,0.824]
[1719790592027,0.55,3451.3,3450.6,0.06935111]
[1719790592225,0.55,3451.3,3450.5,0.824]
[1719790592458,0.55,3451.3,3450.6,0.06935111]
[1719790592657,0.55,3451.3,3450.5,0.824]
[1719790592857,0.55,3451.3,3450.6,0.06935111]
[1719790593365,0.55,3451.3,3450.5,0.824]
[1719790593786,0.55,3451.3,3450.6,0.06935111]
[1719790594153,0.55,3451.3,3450.5,0.824]
[1719790594503,0.55,3451.3,3450.6,0.06934597]
[1719790594670,0.55,3451.3,3450.5,0.824]
[1719790594868,0.55,3451.3,3450.7,0.06928249]
[1719790595182,0.55,3451.3,3450.5,0.824]
[1719790595597,0.55,3451.3,3450.6,0.0693454]
[1719790595955,0.55,3451.3,3450.5,0.824]
[1719790596187,0.55,3451.3,3450.7,0.06928192]
[1719790596387,0.55,3451.3,3450.6,0.0693454]
[1719790596597,0.55,3451.3,3450.5,0.824]
[1719790596973,0.55,3451.3,3450.6,0.0693454]
[1719790597380,0.55,3451.3,3450.5,0.824]
[1719790597809,0.55,3451.3,3450.6,0.0693454]
[1719790598152,0.55,3451.3,3450.5,0.824]
[1719790598353,0.55,3451.3,3450.7,0.06928192]
[1719790598734,1.65463562,3451.3,3450.5,0.824]
[1719790599024,1.65463562,3451.3,3450.8,0.06921844]
[1719790599207,1.65463562,3451.3,3450.5,0.824]
[1719790599384,0.55,3451.3,3450.5,0.824]
[1719790599590,0.55,3451.3,3450.6,0.0693454]
[1719790599905,0.55,3451.3,3450.5,0.824]
[1719790600216,0.55,3451.3,3450.7,0.06928192]
[1719790600374,0.55,3451.3,3450.6,0.0693454]
[1719790600779,0.55,3451.3,3450.5,0.824]
[1719790601325,1.65463562,3451.3,3450.6,0.0693454]
[1719790601623,1.65463562,3451.3,3450.5,0.824]
[1719790602127,1.65463562,3451.3,3450.6,0.0693454]
[1719790602276,1.65463562,3451.3,3450.5,0.824]
[1719790602482,1.65463562,3451.3,3450.7,0.06928192]
[1719790602725,1.65463562,3451.3,3450.5,0.824]
[1719790602928,1.65463562,3451.3,3450.8,0.06921844]
[1719790603082,1.13269918,3451.2,3450.5,0.824]
[1719790603411,0.55,3451.1,3450.9,0.06915497]
[1719790603606,0.55,3451.3,3450.5,0.824]
[1719790604113,0.55,3451.3,3450.6,0.0693454]
[1719790604279,0.55,3451.3,3450.5,0.824]
[1719790604481,0.55,3451.3,3450.7,0.06928192]
[1719790604680,0.55,3451.3,3450.5,0.824]
[1719790604681,1.65463562,3451.3,3450.5,0.824]
[1719790604908,1.65463562,3451.3,3450.8,0.06921331]
[1719790605122,1.65463562,3451.3,3450.5,0.824]
[1719790605280,1.65463562,3451.3,3450.9,0.06914983]
[1719790605580,1.65463562,3451.3,3450.5,0.824]
[1719790606107,1.65463562,3451.3,3450.6,0.06934026]
[1719790606423,1.65463562,3451.3,3450.5,0.824]
[1719790606832,1.65463562,3451.3,3450.6,0.06934026]
[1719790607211,1.65463562,3451.3,3450.5,0.824]
[1719790607583,1.65463562,3451.3,3450.6,0.06934026]
[1719790607899,1.65463562,3451.3,3450.5,0.824]
[1719790607900,0.21088967,3451.2,3450.5,0.824]
[1719790608101,0.55,3451.1,3450.7,0.06927678]
[1719790608491,0.55,3451.2,3450.5,0.824]
[1719790608763,0.55,3451.2,3450.8,0.06920988]
[1719790609089,0.55,3451.2,3450.5,0.824]
[1719790609283,0.55,3451.2,3450.9,0.06914641]
[1719790609581,1.68269918,3451.2,3450.5,0.824]
[1719790609901,0.55,3451.2,3450.6,0.06933684]
[1719790610083,0.55,3451.3,3450.6,0.06933684]
[1719790610283,0.21088978,3451.2,3450.6,0.06933684]
[1719790610529,0.55,3451.1,3450.3,0.824]
[1719790610684,0.55,3451.1,3450.7,0.06927336]
[1719790610885,0.55,3451.3,3450.3,0.824]
[1719790611086,0.21089075,3451.2,3450.8,0.06920988]
[1719790611337,0.55,3451.1,3450.3,0.824]
[1719790611486,0.55,3451.1,3450.9,0.06914641]
[1719790611690,0.55,3451.3,3450.9,0.06914641]
[1719790611888,2.3542,3451.1,3450.3,0.824]
[1719790612090,0.55,3451.0,3450.3,0.824]
[1719790619374,0.55,3451.0,3449.7,2.4034]
[1719790619573,0.21089972,3450.9,3450.0,0.824]
[1719790619863,2.8929,3450.8,3450.0,0.824]
[1719790621307,2.8929,3450.8,3450.1,0.06753837]
[1719790622313,3.7169,3450.8,3450.1,0.06753837]
[1719790622508,3.7169,3450.8,3449.8,0.824]
[1719790622733,3.7169,3450.8,3449.9,0.06766538]
[1719790625313,2.8929,3450.8,3450.0,0.824]
[1719790625569,2.8929,3450.8,3450.2,0.824]
[1719790631165,2.4499,3451.0,3450.4,0.824]
[1719790631374,2.4499,3451.0,3450.4,3.2797]
[1719790631577,2.4499,3451.0,3450.5,0.06730553]
[1719790636163,2.4499,3451.0,3450.6,0.37720998]
[1719790636366,2.4499,3451.0,3450.7,0.06717856]
[1719790641077,2.4239,3451.4,3450.7,0.06717856]
[1719790641277,7.31215622,3451.5,3451.1,0.824]
[1719790641491,2.4239,3451.7,3451.1,0.824]
[1719790642584,0.55,3451.6,3451.1,0.824]
[1719790643560,0.55,3451.6,3450.9,0.88194892]
[1719790647403,0.55,3451.6,3451.0,0.0669693]
[1719790657225,0.55,3451.6,3451.1,0.824]
[1719790657432,0.55,3451.8,3451.3,0.824]
[1719790657900,0.55,3451.8,3451.3,3.1975]
[1719790658784,0.55,3451.8,3451.1,2.3735]
[1719790659107,0.55,3451.8,3451.1,3.1975]
[1719790660396,0.55,3451.8,3451.1,2.3735]
[1719790660613,0.55,3451.8,3451.1,3.1975]
[1719790665116,1.64803562,3451.8,3450.7,2.4944]
[1719790665289,2.4865,3451.7,3451.0,0.824]
[1719790665510,0.55,3451.6,3451.0,0.824]
[1719790665837,0.55,3451.6,3451.1,0.06686813]
[1719790667828,2.4865,3451.5,3451.1,0.06686813]
[1719790668032,0.55,3451.4,3450.7,0.824]
[1719790668231,0.55,3451.4,3450.8,0.06705454]
[1719790672430,0.55,3451.4,3450.9,0.824]
[1719790672626,0.55,3451.4,3451.0,0.0669276]
[1719790675710,2.4641,3451.3,3451.0,0.0669276]
[1719790688323,2.4641,3451.3,3450.8,0.824]
[1719790688536,2.4641,3451.3,3451.1,0.0668727]
[1719790688738,2.4641,3451.3,3450.8,0.824]
[1719790688911,2.4641,3451.3,3451.2,0.06680924]
[1719790689125,2.4641,3451.3,3450.8,0.824]
[1719790689639,2.4641,3451.3,3450.9,0.06699964]
[1719790692877,0.76089828,3451.2,3450.9,0.06699964]
[1719790693024,2.65239828,3451.1,3450.9,0.06699964]
[1719790693230,0.55,3451.0,3450.9,0.06699964]
[1719790693792,0.76090973,3451.0,3450.6,0.68632268]
[1719790693932,0.55,3451.0,3450.6,0.68632268]
[1719790694128,0.55,3451.0,3450.7,0.06714086]
[1719790705778,9.77265622,3451.5,3450.7,2.41834086]
[1719790705957,9.77265622,3451.5,3450.9,0.824]
[1719790706157,9.77265622,3451.5,3451.1,0.824]
[1719790706458,9.77265622,3451.5,3451.2,0.06685206]
[1719790706984,2.4605,3451.5,3451.2,0.06685206]
[1719790707578,0.55,3451.4,3451.2,0.06685206]
[1719790707756,0.55,3451.4,3451.1,0.824]
[1719790707959,0.55,3451.4,3451.3,0.06675719]
[1719790708168,0.55,3451.4,3451.2,0.06682065]
[1719790708485,0.55,3451.4,3451.3,0.06675719]
[1719790708998,0.55,3451.4,3450.9,0.824]
[1719790709488,0.55,3451.4,3451.0,0.06694872]
[1719790712674,0.55,3451.4,3450.9,0.824]
[1719790722998,2.3671,3451.3,3450.6,0.68632268]
[1719790723167,1.374,3451.2,3450.6,0.68632268]
[1719790723363,2.3671,3451.1,3450.7,0.0671397]
[1719790723611,0.55,3451.0,3450.7,0.0671397]
[1719790732391,0.84171,3451.0,3450.7,0.0671397]
[1719790733132,3.2344,3450.9,3450.7,0.0671397]
[1719790733429,2.9604,3450.8,3450.7,0.0671397]
[1719790733570,2.9604,3450.8,3450.6,0.68632268]
[1719790733975,2.9604,3450.8,3450.7,0.06715057]
[1719790734370,2.9604,3450.8,3450.6,0.68632268]
[1719790734804,2.9604,3450.8,3450.7,0.06715057]
[1719790735189,2.9604,3450.8,3450.6,0.68632268]
[1719790735477,2.9604,3450.8,3450.7,0.06715057]
[1719790735901,2.9604,3450.8,3450.6,0.68632268]
[1719790736113,2.9604,3450.8,3450.7,0.06715057]
[1719790736491,2.9604,3450.8,3450.6,0.68632268]
[1719790736817,2.9604,3450.8,3450.7,0.06715057]
[1719790737195,2.9604,3450.8,3450.6,0.68632268]
[1719790737700,2.9604,3450.8,3450.7,0.06715057]
[1719790737919,2.9604,3450.8,3450.6,0.68632268]
[1719790738401,2.9604,3450.8,3450.7,0.06715057]
[1719790738923,2.9604,3450.8,3450.6,0.68632268]
[1719790739323,2.9604,3450.8,3450.7,0.06715057]
[1719790739829,2.9604,3450.8,3450.6,0.68632268]
[1719790740125,2.9604,3450.8,3450.7,0.06715057]
[1719790740503,2.9604,3450.8,3450.6,0.68632268]
[1719790740686,2.9604,3450.8,3450.7,0.06715057]
[1719790740897,2.9604,3450.8,3450.6,0.68632268]
[1719790741210,2.9604,3450.8,3450.7,0.06715057]
[1719790741642,2.9604,3450.8,3450.6,0.68632268]
[1719790742125,2.9604,3450.8,3450.7,0.06715057]
[1719790742534,2.9604,3450.8,3450.6,0.68632268]
[1719790743024,2.9604,3450.8,3450.7,0.06715057]
[1719790743328,2.9604,3450.8,3450.6,0.68632268]
[1719790743817,2.9604,3450.8,3450.7,0.06715057]
[1719790744205,2.9604,3450.8,3450.6,0.68632268]
[1719790744518,2.9604,3450.8,3450.7,0.06716827]
[1719790745029,2.9604,3450.8,3450.6,0.68632268]
[1719790745325,2.9604,3450.8,3450.7,0.06716827]
[1719790745709,2.9604,3450.8,3450.6,0.68632268]
[1719790745910,2.9604,3450.8,3450.7,0.06716827]
[1719790746124,2.9604,3450.8,3450.6,0.68632268]
[1719790746640,2.9604,3450.8,3450.7,0.06716827]
[1719790746933,2.9604,3450.8,3450.6,0.68632268]
[1719790747435,2.9604,3450.8,3450.7,0.06716827]
[1719790747638,2.9604,3450.8,3450.6,0.68632268]
[1719790747955,2.9604,3450.8,3450.7,0.06716827]
[1719790748301,2.9604,3450.8,3450.6,0.68632268]
[1719790748500,2.9604,3450.8,3450.7,0.06716827]
[1719790748749,2.9604,3450.8,3450.6,0.68632268]
[1719790749019,2.9604,3450.8,3450.7,0.06716827]
[1719790749231,2.9604,3450.8,3450.6,0.68632268]
[1719790749602,2.9604,3450.8,3450.7,0.06716827]
[1719790750134,2.9604,3450.8,3450.6,0.68632268]
[1719790750519,2.9604,3450.8,3450.7,0.06716827]
[1719790750901,2.9604,3450.8,3450.6,0.68632268]
[1719790751371,2.9604,3450.8,3450.7,0.06716827]
[1719790751654,2.9604,3450.8,3450.6,0.68632268]
[1719790751818,2.9604,3450.8,3450.7,0.06716827]
[1719790752018,2.9604,3450.8,3450.6,0.68632268]
[1719790752402,2.9604,3450.8,3450.7,0.06716827]
[1719790752608,2.9604,3450.8,3450.6,0.68632268]
[1719790752922,2.9604,3450.8,3450.7,0.06716827]
[1719790753125,3.33884,3450.8,3450.7,0.06716827]
[1719790753324,3.33884,3450.8,3450.6,0.68632268]
[1719790753325,3.54971554,3450.8,3450.6,0.68632268]
[1719790753537,0.824,3450.7,3450.6,0.68632268]
[1719790753730,1.374,3450.7,3450.6,0.68632268]
[1719790753930,1.845284,3450.7,3450.6,0.75358755]
[1719790755624,4.138584,3450.7,3450.6,0.75358755]
[1719790755859,3.87820321,3450.7,3450.6,0.68632268]
[1719790757370,3.87820851,3450.7,3450.6,0.68632268]
[1719790757535,3.05420851,3450.7,3450.6,0.68632268]
[1719790757716,4.18362936,3450.7,3450.6,0.68632268]
[1719790758654,3.35962936,3450.7,3450.6,0.68632268]
[1719790759026,3.35934209,3450.7,3450.6,0.68632268]
[1719790759221,3.35937041,3450.7,3450.6,0.68632268]
[1719790759422,3.14872085,3450.7,3450.6,0.68632268]
[1719790759623,3.35935985,3450.7,3450.6,0.68632268]
[1719790760362,3.14872085,3450.7,3450.6,0.68632268]
[1719790771039,3.35940072,3450.7,3450.6,0.68632268]
[1719790771363,3.35939638,3450.7,3450.6,0.75362583]
[1719790771558,3.14872085,3450.7,3450.6,0.75362583]
[1719790772470,3.35940185,3450.7,3450.6,0.75362583]
[1719790773372,3.14872085,3450.7,3450.6,0.75362583]
[1719790773531,3.35942655,3450.7,3450.6,0.75362583]
[1719790773853,3.3594312,3450.7,3450.6,0.75362583]
[1719790774857,3.14872085,3450.7,3450.6,0.75362583]
[1719790775054,2.8433,3450.7,3450.6,0.75362583]
[1719790775396,3.6673,3450.7,3450.6,0.75362583]
[1719790778046,1.374,3450.7,3450.6,0.75362583]
[1719790778247,0.55,3450.7,3450.6,0.75362583]
[1719790778482,3.824,3451.0,3450.6,0.75362583]
[1719790778483,3.0,3451.0,3450.6,0.75362583]
[1719790778681,3.0,3451.0,3450.7,2.3166]
[1719790780296,0.55,3450.9,3450.7,2.3166]
[1719790780600,0.55,3450.9,3450.8,0.06512957]
[1719790781501,3.0,3451.0,3450.8,0.06512957]
[1719790781786,7.31215622,3451.1,3450.7,2.3166]
[1719790789215,0.55,3451.0,3450.7,2.3166]
[1719790796875,0.55,3451.0,3450.6,0.68632268]
[1719790797506,1.374,3451.0,3450.6,0.68632268]
[1719790798005,0.824,3450.8,3450.6,0.68632268]
[1719790798205,0.55,3450.7,3450.6,0.68632268]
[1719790799217,0.92042,3450.7,3450.6,0.68632268]
[1719790801505,0.92042,3450.7,3450.6,0.75156323]
[1719790801506,3.09068672,3450.7,3450.6,0.75156323]
[1719790801707,6.4249314,3450.7,3450.6,0.75156323]
[1719790801906,7.2489314,3450.7,3450.6,0.68632268]
[1719790802098,6.91468672,3450.7,3450.6,0.68632268]
[1719790802299,7.75076823,3450.7,3450.6,0.68632268]
[1719790802805,6.92676823,3450.7,3450.6,0.68632268]
[1719790803119,7.75076823,3450.7,3450.6,0.68632268]
[1719790803803,7.75074696,3450.7,3450.6,0.68632268]
[1719790805540,4.87054696,3450.7,3450.6,0.68632268]
[1719790805687,1.87054696,3450.7,3450.6,0.68632268]
[1719790805890,1.87054696,3450.7,3450.6,0.7471859]
[1719790806085,3.0,3450.9,3450.6,0.7471859]
[1719790806339,3.0,3451.0,3450.6,0.7471859]
[1719790806692,3.0,3451.0,3450.6,0.68632268]
[1719790807397,0.824,3450.9,3450.6,0.68632268]
[1719790807605,0.824,3450.7,3450.6,0.68632268]
[1719790807804,1.374,3450.7,3450.6,0.68632268]
[1719790808120,4.374,3450.7,3450.6,0.68632268]
[1719790814149,4.374,3450.7,3450.6,0.74719218]
[1719790814343,3.55,3450.7,3450.6,0.74719218]
[1719790814642,4.374,3450.7,3450.6,0.74719218]
[1719790815050,5.15847156,3450.7,3450.6,0.74719218]
[1719790817950,4.33447156,3450.7,3450.6,0.74719218]
[1719790818243,2.15847156,3450.7,3450.6,0.74719218]
[1719790818442,5.15847156,3450.7,3450.6,0.74719218]
[1719790824932,7.44777156,3450.7,3450.6,0.74719218]
[1719790825135,7.44777156,3450.7,3450.6,0.68632268]
[1719790825471,7.65819782,3450.7,3450.6,0.68632268]
[1719790825993,7.65817924,3450.7,3450.6,0.68632268]
[1719790826297,7.6581755,3450.7,3450.6,0.68632268]
[1719790827959,7.6581948,3450.7,3450.6,0.68632268]
[1719790829084,7.65821888,3450.7,3450.6,0.68632268]
[1719790830678,7.44777156,3450.7,3450.6,0.68632268]
[1719790830978,7.6582236,3450.7,3450.6,0.68632268]
[1719790835259,7.44777156,3450.7,3450.6,0.68632268]
[1719790835448,7.65818344,3450.7,3450.6,0.68632268]
[1719790835858,7.65817558,3450.7,3450.6,0.68632268]
[1719790838404,7.6581733,3450.7,3450.6,0.68632268]
[1719790838707,7.65817499,3450.7,3450.6,0.68632268]
[1719790841469,7.44777156,3450.7,3450.6,0.68632268]
[1719790841775,7.65815901,3450.7,3450.6,0.68632268]
[1719790843880,7.44777156,3450.7,3450.6,0.68632268]
[1719790844080,7.65806942,3450.7,3450.6,0.68632268]
[1719790844688,7.44777156,3450.7,3450.6,0.68632268]
[1719790844984,7.65808655,3450.7,3450.6,0.68632268]
[1719790847875,7.44777156,3450.7,3450.6,0.68632268]
[1719790848065,7.65807265,3450.7,3450.6,0.68632268]
[1719790851079,7.65814262,3450.7,3450.6,0.68632268]
[1719790854216,7.44777156,3450.7,3450.6,0.68632268]
[1719790854508,7.65806961,3450.7,3450.6,0.68632268]
[1719790857515,7.6580868,3450.7,3450.6,0.68632268]
[1719790860499,7.44777156,3450.7,3450.6,0.68632268]
[1719790860697,7.65809195,3450.7,3450.6,0.68632268]
[1719790861105,7.44777156,3450.7,3450.6,0.68632268]
[1719790861334,7.65811222,3450.7,3450.6,0.68632268]
[1719790862990,9.10324126,3450.7,3450.6,0.68632268]
[1719790863941,7.44777156,3450.7,3450.6,0.68632268]
[1719790864145,9.10324958,3450.7,3450.6,0.68632268]
[1719790865653,7.65810377,3450.7,3450.6,0.68632268]
[1719790866161,7.44777156,3450.7,3450.6,0.68632268]
[1719790866310,9.10326103,3450.7,3450.6,0.68632268]
[1719790867816,7.65810521,3450.7,3450.6,0.68632268]
[1719790869316,7.44777156,3450.7,3450.6,0.68632268]
[1719790869506,9.10338067,3450.7,3450.6,0.68632268]
[1719790871047,7.6581203,3450.7,3450.6,0.68632268]
[1719790872550,7.44777156,3450.7,3450.6,0.68632268]
[1719790872843,9.10336806,3450.7,3450.6,0.68632268]
[1719790873043,9.10333282,3450.7,3450.6,0.68632268]
[1719790873653,6.81403282,3450.7,3450.6,0.68632268]
[1719790874322,5.36881441,3450.7,3450.6,0.68632268]
[1719790875646,5.3688153,3450.7,3450.6,0.68632268]
[1719790875954,5.36881809,3450.7,3450.6,0.68632268]
[1719790877815,5.3687906,3450.7,3450.6,0.68632268]
[1719790881721,5.15847156,3450.7,3450.6,0.68632268]
[1719790881918,5.3688877,3450.7,3450.6,0.68632268]
[1719790882124,6.8148201,3450.7,3450.6,0.68632268]
[1719790883662,5.36891289,3450.7,3450.6,0.68632268]
[1719790885253,5.15847156,3450.7,3450.6,0.68632268]
[1719790885481,5.36892474,3450.7,3450.6,0.68632268]
[1719790885781,5.15847156,3450.7,3450.6,0.68632268]
[1719790885928,6.81508912,3450.7,3450.6,0.68632268]
[1719790887044,5.36894532,3450.7,3450.6,0.68632268]
[1719790888385,5.15847156,3450.7,3450.6,0.68632268]
[1719790888544,2.36895495,3450.7,3450.6,0.68632268]
[1719790888739,2.36895687,3450.7,3450.6,0.68632268]
[1719790891647,2.36897404,3450.7,3450.6,0.68632268]
[1719790893894,1.54497404,3450.7,3450.6,0.68632268]
[1719790894186,2.36897404,3450.7,3450.6,0.68632268]
[1719790894562,30.24827103,3450.7,3450.6,0.68632268]
[1719790894958,34.46350042,3450.7,3450.6,0.68632268]
[1719790895144,39.12386798,3450.7,3450.6,0.68632268]